fUST/lending_fUST_20240608
["ID","MTS","AMOUNT","RATE_DAILY","PERIOD"]
[328815292,1717828239011,-853.22,0.00016438,2]
[328815293,1717828239021,-500.0,0.00016438,2]
[328815294,1717828239030,-500.0,0.00016438,2]
[328815295,1717828239041,-89.91343363,0.00016438,2]
[328815401,1717828247026,-410.08656637,0.00016438,2]
[328815403,1717828247036,-500.0,0.00016438,2]
[328815404,1717828247046,-518.48391398,0.00016438,2]
[328815466,1717829433294,-636.53625817,0.00015385,2]
[328815554,1717829439488,-255.34213777,0.00015385,2]
[328815555,1717829439715,-2118.64551156,0.00015385,2]
[328815556,1717829439725,-592.93979784,0.00016241,2]
[328815557,1717829439736,-620.16025643,0.00016284,2]
[328815558,1717829439746,-166.666666,0.00016329,2]
[328815559,1717829439757,-151.0,0.00016386,2]
[328815560,1717829439768,-53591.8570972,0.00016437,2]
[328815561,1717829439778,-500.0,0.00016438,2]
[328815562,1717829439789,-97.04649094,0.00016438,2]
[328815580,1717829444019,-445.18548997,0.00016438,2]
[328815581,1717829444029,-500.0,0.00016438,2]
[328815582,1717829444039,-500.0,0.00016438,2]
[328815583,1717829444050,-500.0,0.00016438,2]
[328815584,1717829444060,-500.0,0.00016438,2]
[328815585,1717829444070,-500.0,0.00016438,2]
[328815586,1717829444081,-500.0,0.00016438,2]
[328815587,1717829444091,-500.0,0.00016438,2]
[328815588,1717829444100,-500.0,0.00016438,2]
[328815589,1717829444111,-500.0,0.00016438,2]
[328815590,1717829444121,-203.16760027,0.00016438,2]
[328815591,1717829444130,-500.0,0.00016438,2]
[328815592,1717829444140,-328.31265088,0.00016438,2]
[328815593,1717829444151,-500.0,0.00016438,2]
[328815594,1717829444163,-500.0,0.00016438,2]
[328815595,1717829444181,-458.43409706,0.00016438,2]
[328815596,1717829444192,-500.0,0.00016438,2]
[328815597,1717829444203,-500.0,0.00016438,2]
[328815598,1717829444215,-500.0,0.00016438,2]
[328815599,1717829444225,-674.39,0.00016438,2]
[328815600,1717829444235,-500.0,0.00016438,2]
[328815601,1717829444244,-179.73672169,0.00016438,2]
[328815602,1717829444257,-320.26327831,0.00016438,2]
[328815603,1717829444267,-500.5877006,0.00016438,2]
[328815604,1717829444278,-513.31193742,0.00016438,2]
[328815605,1717829444289,-500.0,0.00016438,2]
[328815606,1717829444301,-500.0,0.00016438,2]
[328815607,1717829444312,-500.0,0.00016438,2]
[328815608,1717829444322,-500.0,0.00016438,2]
[328815609,1717829444332,-501.63231286,0.00016438,2]
[328815610,1717829444342,-594.38,0.00016438,2]
[328815611,1717829444351,-500.0,0.00016438,2]
[328815612,1717829444361,-500.0,0.00016438,2]
[328815613,1717829444371,-500.0,0.00016438,2]
[328815614,1717829444380,-500.0,0.00016438,2]
[328815615,1717829444390,-500.0,0.00016438,2]
[328815616,1717829444401,-500.0,0.00016438,2]
[328815617,1717829444414,-127.19925839,0.00016438,2]
[328815618,1717829444426,-372.80074161,0.00016438,2]
[328815619,1717829444437,-500.0,0.00016438,2]
[328815620,1717829444448,-709.87,0.00016438,2]
[328815621,1717829444458,-500.0,0.00016438,2]
[328815622,1717829444468,-500.0,0.00016438,2]
[328815623,1717829444480,-500.0,0.00016438,2]
[328815624,1717829444491,-500.0,0.00016438,2]
[328815625,1717829444501,-184.632055,0.00016438,2]
[328815626,1717829444510,-184.632055,0.00016438,2]
[328815627,1717829444520,-184.632055,0.00016438,2]
[328815628,1717829444529,-184.632055,0.00016438,2]
[328815629,1717829444541,-184.632055,0.00016438,2]
[328815630,1717829444551,-184.632055,0.00016438,2]
[328815631,1717829444560,-184.632055,0.00016438,2]
[328815632,1717829444570,-184.632055,0.00016438,2]
[328815633,1717829444580,-184.632055,0.00016438,2]
[328815634,1717829444591,-184.632055,0.00016438,2]
[328815635,1717829444601,-184.632055,0.00016438,2]
[328815636,1717829444610,-184.632055,0.00016438,2]
[328815637,1717829444620,-184.632055,0.00016438,2]
[328815638,1717829444630,-184.632055,0.00016438,2]
[328815639,1717829444640,-184.632055,0.00016438,2]
[328815640,1717829444650,-184.632055,0.00016438,2]
[328815641,1717829444659,-184.632055,0.00016438,2]
[328815642,1717829444671,-904.84,0.00016438,2]
[328815643,1717829444681,-184.632055,0.00016438,2]
[328815644,1717829444691,-500.0,0.00016438,2]
[328815645,1717829444702,-500.0,0.00016438,2]
[328815646,1717829444711,-525.43,0.00016438,2]
[328815647,1717829444722,-500.0,0.00016438,2]
[328815648,1717829444732,-500.0,0.00016438,2]
[328815649,1717829444742,-894.4,0.00016438,2]
[328815650,1717829444753,-500.0,0.00016438,2]
[328815651,1717829444762,-686.38,0.00016438,2]
[328815652,1717829444772,-500.0,0.00016438,2]
[328815653,1717829444782,-2269.43,0.00016438,2]
[328815654,1717829444792,-500.0,0.00016438,2]
[328815655,1717829444801,-500.0,0.00016438,2]
[328815656,1717829444811,-500.0,0.00016438,2]
[328815657,1717829444821,-500.0,0.00016438,2]
[328815658,1717829444830,-433.5484404,0.00016438,2]
[328815659,1717829444840,-676.97,0.00016438,2]
[328815660,1717829444850,-1448.97,0.00016438,2]
[328815661,1717829444859,-500.0,0.00016438,2]
[328815662,1717829444869,-907.81,0.00016438,2]
[328815663,1717829444879,-1323.05,0.00016438,2]
[328815664,1717829444888,-500.0,0.00016438,2]
[328815665,1717829444898,-918.13,0.00016438,2]
[328815666,1717829444908,-473.89273693,0.00016438,2]
[328815673,1717829446426,-26.10726307,0.00016438,2]
[328815674,1717829446437,-500.0,0.00016438,2]
[328815675,1717829446447,-1499.02,0.00016438,4]
[328815676,1717829446457,-500.0,0.00016438,2]
[328815677,1717829446467,-500.0,0.00016438,2]
[328815678,1717829446478,-2016.9,0.00016438,2]
[328815679,1717829446487,-224.7868892,0.00016438,2]
[328815680,1717829446497,-883.4,0.00016438,2]
[328815681,1717829446507,-500.0,0.00016438,2]
[328815682,1717829446516,-628.35,0.00016438,2]
[328815683,1717829446526,-500.0,0.00016438,2]
[328815684,1717829446535,-500.0,0.00016438,2]
[328815685,1717829446544,-190.31878756,0.00016438,2]
[328815688,1717829447449,-309.68121244,0.00016438,2]
[328815689,1717829447460,-133.3729926,0.00016438,2]
[328815692,1717829447635,-366.6270074,0.00016438,2]
[328815693,1717829447645,-503.39915285,0.00016438,2]
[328815694,1717829447655,-500.0,0.00016438,2]
[328815695,1717829447665,-500.0,0.00016438,2]
[328815696,1717829447675,-500.0,0.00016438,2]
[328815697,1717829447684,-1331.94296369,0.00016438,2]
[328815751,1717830149211,1000.0,0.00025,60]
[328815752,1717830241440,1441.79948543,9.999e-05,2]
[328815925,1717830632789,-1441.79948543,0.00015999,2]
[328815928,1717830632799,-596.77521547,0.00016,2]
[328815931,1717830632809,-24000.0,0.00016,2]
[328815934,1717830632818,-155.93733148,0.00016273,3]
[328815937,1717830632827,-166.666666,0.00016329,2]
[328815938,1717830632837,-7809.90214527,0.00016433,2]
[328815940,1717830632847,-3421.87043284,0.00016436,2]
[328815942,1717830632856,-7203.30565318,0.00016437,2]
[328815971,1717830640642,-1435.06229804,0.00016437,2]
[328815972,1717830640840,-631.09863966,0.00016437,2]
[328815973,1717830640851,-500.0,0.00016438,2]
[328815974,1717830640861,-500.0,0.00016438,2]
[328815975,1717830640871,-391.31928816,0.00016438,2]
[328815976,1717830640883,-108.68071184,0.00016438,2]
[328815977,1717830640894,-500.0,0.00016438,2]
[328815978,1717830640904,-656.09804815,0.00016438,2]
[328816007,1717830643217,-22.10195185,0.00016438,2]
[328816008,1717830643229,-405.53469277,0.00016438,2]
[328816010,1717830643241,-282.09530723,0.00016438,2]
[328816012,1717830643252,-500.0,0.00016438,2]
[328816013,1717830643262,-1388.59,0.00016438,2]
[328816014,1717830643272,-500.0,0.00016438,2]
[328816015,1717830643282,-1501.74,0.00016438,4]
[328816016,1717830643292,-500.0,0.00016438,2]
[328816017,1717830643302,-500.0,0.00016438,2]
[328816018,1717830643311,-345.09442052,0.00016438,2]
[328816020,1717830643787,-154.90557948,0.00016438,2]
[328816021,1717830643797,-500.0,0.00016438,2]
[328816022,1717830643809,-26.16329766,0.00016438,2]
[328816038,1717831128590,1441.79948543,9.999e-05,2]
[328816041,1717831497708,-2681.67820183,0.00015251,2]
[328816042,1717831497730,-6318.32179817,0.00015252,2]
[328816044,1717831610116,-9366.8230752,0.00015255,2]
[328816095,1717831832994,-8925.31333164,0.0001522,2]
[328816096,1717831833148,-9618.37732266,0.0001522,2]
[328816097,1717831833159,-172.6,0.00015646,2]
[328816098,1717831833169,-172.6,0.00016039,2]
[328816099,1717831833179,-1236.55432384,0.00016168,2]
[328816100,1717831833188,-1142.82588061,0.00016168,2]
[328816101,1717831833198,-1294.52780377,0.00016168,2]
[328816102,1717831833208,-1599.50813717,0.00016168,2]
[328816103,1717831833218,-177.78637968,0.00016168,2]
[328816104,1717831833227,-1267.72091847,0.00016168,2]
[328816105,1717831833237,-10539.6485585,0.00016168,2]
[328816106,1717831833247,-1458.63307318,0.00016168,2]
[328816107,1717831833256,-5020.29263718,0.00016168,2]
[328816108,1717831833267,-528.92049915,0.00016168,2]
[328816109,1717831833278,-1301.4702043,0.00016169,2]
[328816110,1717831833288,-36206.67965779,0.0001617,2]
[328816166,1717831839297,-2176.04131173,0.0001617,2]
[328816167,1717831839308,-637.53373143,0.00016243,2]
[328816168,1717831839318,-209.67035269,0.00016255,2]
[328816169,1717831839331,-1489.25058331,0.00016255,2]
[328816171,1717831839368,-2537.35539262,0.00016255,2]
[328816173,1717831839379,-166.666666,0.00016329,2]
[328816175,1717831839389,-5399.46072578,0.00016354,2]
[328816193,1717831843534,-9580.07450555,0.00016354,2]
[328816194,1717831843544,-153.0,0.000164,2]
[328816196,1717831843553,-306.0,0.000164,2]
[328816197,1717831843563,-153.0,0.000164,2]
[328816198,1717831843573,-153.0,0.000164,2]
[328816199,1717831843582,-205.235798,0.000164,2]
[328816200,1717831843592,-306.0,0.000164,2]
[328816201,1717831843602,-172.6,0.00016432,2]
[328816203,1717831843612,-1100.10114648,0.00016436,2]
[328816204,1717831843622,-154.95351395,0.00016436,2]
[328816205,1717831843632,-261.6520578,0.00016436,2]
[328816206,1717831843642,-685.80898577,0.00016436,2]
[328816207,1717831843651,-216.14213589,0.00016436,2]
[328816208,1717831843661,-184.95568939,0.00016436,2]
[328816209,1717831843787,-20.69147878,0.00016437,2]
[328816216,1717831844526,-13502.47508797,0.00016437,2]
[328816217,1717831844536,-3095.56286769,0.00016437,2]
[328816225,1717831848917,-3834.54289921,0.00016437,2]
[328816226,1717831848926,-151.0,0.00016437,2]
[328816227,1717831848935,-672.02,0.00016438,2]
[328816228,1717831848946,-500.0,0.00016438,2]
[328816229,1717831848955,-500.0,0.00016438,2]
[328816230,1717831848964,-1203.84,0.00016438,2]
[328816231,1717831848973,-234.99321729,0.00016438,2]
[328816232,1717831848986,-228.24419328,0.00016438,2]
[328816233,1717831848995,-500.0,0.00016438,2]
[328816234,1717831849004,-616.46,0.00016438,2]
[328816235,1717831849013,-309.5275151,0.00016438,2]
[328816236,1717831849022,-205.75365029,0.00016438,2]
[328816272,1717832517633,-14093.4,0.00015376,2]
[328816274,1717832629823,-6947.54,0.00015376,2]
[328816275,1717832706254,456.65567516,9.999e-05,2]
[328816319,1717832982581,500.0,0.00023,30]
[328816320,1717832989303,341.79,0.00023,30]
[328816364,1717833033594,-2681.67820183,0.00015266,2]
[328816366,1717833033604,-1121.50424171,0.00015267,2]
[328816368,1717833033614,-8076.84855026,0.00015365,2]
[328816370,1717833033627,-26192.72971906,0.00015365,2]
[328816372,1717833033637,-24900.0,0.00015367,2]
[328816374,1717833033647,-3000.0,0.00015419,2]
[328816376,1717833033657,-767.85577405,0.00016272,2]
[328816378,1717833033668,-269.88693063,0.0001629,2]
[328816380,1717833033678,-166.666666,0.00016329,2]
[328816382,1717833033688,-173.90315984,0.00016338,2]
[328816384,1717833033698,-589.394411,0.000164,2]
[328816386,1717833033708,-307.265204,0.000164,2]
[328816388,1717833033718,-322.3709205,0.000164,2]
[328816390,1717833033728,-306.0,0.000164,2]
[328816392,1717833033738,-153.0,0.000164,2]
[328816394,1717833033748,-4237.72657179,0.00016416,2]
[328816396,1717833033758,-188.2754351,0.00016434,2]
[328816398,1717833033768,-525.55585399,0.00016434,2]
[328816400,1717833033778,-1910.2108174,0.00016434,2]
[328816402,1717833033788,-553.75380596,0.00016435,2]
[328816404,1717833033798,-5380.61031317,0.00016436,2]
[328816406,1717833033808,-3070.38438642,0.00016436,2]
[328816408,1717833033818,-556.26078014,0.00016436,2]
[328816410,1717833033828,-1500.09697047,0.00016436,2]
[328816412,1717833033838,-208.20443176,0.00016436,2]
[328816414,1717833033848,-261.76097194,0.00016436,2]
[328816416,1717833033857,-32.15949243,0.00016436,2]
[328816543,1717833039703,-456.65567516,0.00015265,2]
[328816544,1717833039714,-122.79402152,0.00016436,2]
[328816545,1717833039725,-685.80898577,0.00016436,2]
[328816546,1717833039736,-158.91065437,0.00016436,2]
[328816547,1717833039747,-515.13028145,0.00016436,2]
[328816548,1717833039759,-154.95351395,0.00016436,2]
[328816549,1717833039769,-691.90816563,0.00016436,2]
[328816550,1717833039780,-318.68398818,0.00016436,2]
[328816551,1717833039791,-500.0,0.00016436,2]
[328816552,1717833039801,-1341.97127634,0.00016436,2]
[328816553,1717833039813,-529.79177973,0.00016436,2]
[328816554,1717833039824,-194.93299377,0.00016436,2]
[328816555,1717833039834,-156.79013596,0.00016436,2]
[328816556,1717833039846,-241.78042164,0.00016436,2]
[328816557,1717833039856,-12.72145789,0.00016436,2]
[328816558,1717833039870,-708.98414937,0.00016436,2]
[328816559,1717833039881,-116.4834236,0.00016436,2]
[328816560,1717833039895,-257.85217078,0.00016436,2]
[328816577,1717833043707,-295.83716802,0.00016436,2]
[328816580,1717833043720,-344.02899578,0.00016436,2]
[328816582,1717833043730,-11095.22596521,0.00016437,2]
[328816583,1717833043740,-159.63355566,0.00016438,2]
[328816584,1717833043751,-500.0,0.00016438,2]
[328816585,1717833043761,-500.0,0.00016438,2]
[328816586,1717833043771,-402.95350906,0.00016438,2]
[328816587,1717833043781,-500.0,0.00016438,2]
[328816588,1717833043791,-500.0,0.00016438,2]
[328816589,1717833043801,-500.0,0.00016438,2]
[328816590,1717833043811,-500.0,0.00016438,2]
[328816591,1717833043821,-500.0,0.00016438,2]
[328816592,1717833043831,-500.0,0.00016438,2]
[328816593,1717833043842,-500.0,0.00016438,2]
[328816594,1717833043852,-500.0,0.00016438,2]
[328816595,1717833043862,-681.25,0.00016438,2]
[328816596,1717833043871,-500.0,0.00016438,2]
[328816597,1717833043880,-500.0,0.00016438,2]
[328816598,1717833043890,-500.0,0.00016438,2]
[328816599,1717833043900,-569.62,0.00016438,2]
[328816600,1717833043910,-500.0,0.00016438,2]
[328816601,1717833043920,-279.45513395,0.00016438,2]
[328816602,1717833043929,-500.0,0.00016438,2]
[328816603,1717833043939,-500.0,0.00016438,2]
[328816604,1717833043949,-500.0,0.00016438,2]
[328816606,1717833043959,-500.0,0.00016438,2]
[328816607,1717833043969,-151.0,0.00016438,2]
[328816608,1717833043979,-151.0,0.00016438,2]
[328816609,1717833043989,-151.0,0.00016438,2]
[328816610,1717833044008,-151.0,0.00016438,2]
[328816611,1717833044020,-151.0,0.00016438,2]
[328816612,1717833044029,-609.76,0.00016438,2]
[328816613,1717833044039,-500.0,0.00016438,2]
[328816614,1717833044049,-500.0,0.00016438,2]
[328816615,1717833044058,-500.0,0.00016438,2]
[328816616,1717833044068,-500.0,0.00016438,2]
[328816617,1717833044077,-151.0,0.00016438,2]
[328816618,1717833044087,-218.264105,0.00016438,2]
[328816619,1717833044097,-500.0,0.00016438,2]
[328816620,1717833044106,-500.0,0.00016438,2]
[328816621,1717833044116,-500.0,0.00016438,2]
[328816622,1717833044126,-1288.76,0.00016438,2]
[328816623,1717833044136,-500.0,0.00016438,2]
[328816624,1717833044146,-670.77,0.00016438,2]
[328816625,1717833044156,-680.29,0.00016438,2]
[328816626,1717833044166,-500.0,0.00016438,2]
[328816627,1717833044175,-500.0,0.00016438,2]
[328816628,1717833044185,-500.0,0.00016438,2]
[328816629,1717833044195,-500.0,0.00016438,2]
[328816630,1717833044205,-502.36322369,0.00016438,2]
[328816631,1717833044214,-1330.74,0.00016438,2]
[328816632,1717833044224,-886.92,0.00016438,2]
[328816633,1717833044234,-1439.17,0.00016438,4]
[328816634,1717833044244,-504.10003465,0.00016438,2]
[328816635,1717833044254,-205.30883286,0.00016438,2]
[328816647,1717833047791,-299.32880152,0.00016438,2]
[328816648,1717833047801,-900.71,0.00016438,2]
[328816649,1717833047810,-524.37,0.00016438,2]
[328816650,1717833047820,-679.81,0.00016438,2]
[328816651,1717833047830,-500.0,0.00016438,2]
[328816652,1717833047841,-500.0,0.00016438,2]
[328816653,1717833047850,-500.0,0.00016438,2]
[328816654,1717833047859,-509.21652917,0.00016438,2]
[328816655,1717833047869,-500.0,0.00016438,2]
[328816656,1717833047880,-573.25917193,0.00016438,2]
[328816657,1717833047890,-500.0,0.00016438,2]
[328816658,1717833047900,-857.13,0.00016438,2]
[328816659,1717833047910,-500.0,0.00016438,2]
[328816660,1717833047919,-500.0,0.00016438,2]
[328816661,1717833047929,-504.99919027,0.00016438,2]
[328816662,1717833047939,-500.0,0.00016438,2]
[328816663,1717833047949,-500.0,0.00016438,2]
[328816664,1717833047960,-2174.87,0.00016438,2]
[328816665,1717833047970,-500.0,0.00016438,2]
[328816666,1717833047980,-500.0,0.00016438,2]
[328816667,1717833047990,-500.0,0.00016438,2]
[328816668,1717833048000,-505.0,0.00016438,2]
[328816669,1717833048010,-512.09913216,0.00016438,2]
[328816670,1717833048019,-501.16234219,0.00016438,2]
[328816671,1717833048029,-502.43584416,0.00016438,2]
[328816672,1717833048039,-500.0,0.00016438,2]
[328816673,1717833048048,-500.0,0.00016438,2]
[328816674,1717833048058,-500.0,0.00016438,2]
[328816675,1717833048067,-500.0,0.00016438,2]
[328816676,1717833048077,-869.99,0.00016438,2]
[328816677,1717833048087,-500.0,0.00016438,2]
[328816678,1717833048097,-500.0,0.00016438,2]
[328816679,1717833048107,-500.0,0.00016438,2]
[328816680,1717833048116,-500.0,0.00016438,2]
[328816681,1717833048126,-500.0,0.00016438,2]
[328816682,1717833048135,-500.0,0.00016438,2]
[328816683,1717833048145,-500.0,0.00016438,2]
[328816684,1717833048155,-515.22965175,0.00016438,2]
[328816685,1717833048165,-500.0,0.00016438,2]
[328816686,1717833048174,-500.0,0.00016438,2]
[328816687,1717833048184,-210.62321732,0.00016438,2]
[328816688,1717833048193,-502.67077635,0.00016438,2]
[328816689,1717833048203,-1932.86,0.00016438,2]
[328816690,1717833048213,-500.0,0.00016438,2]
[328816691,1717833048222,-602.17,0.00016438,2]
[328816692,1717833048232,-846.59,0.00016438,2]
[328816693,1717833048241,-500.0,0.00016438,2]
[328816694,1717833048251,-500.0,0.00016438,2]
[328816695,1717833048381,-500.0,0.00016438,2]
[328816696,1717833048391,-555.47305834,0.00016438,2]
[328816697,1717833048401,-500.0,0.00016438,2]
[328816698,1717833048410,-321.66630779,0.00016438,2]
[328816699,1717833048420,-584.45,0.00016438,2]
[328816700,1717833048430,-1830.79,0.00016438,2]
[328816701,1717833048439,-2178.23,0.00016438,2]
[328816702,1717833048449,-500.0,0.00016438,2]
[328816703,1717833048458,-500.0,0.00016438,2]
[328816704,1717833048468,-1242.13,0.00016438,2]
[328816705,1717833048478,-1153.26,0.00016438,2]
[328816706,1717833048488,-500.0,0.00016438,2]
[328816707,1717833048497,-1962.51,0.00016438,2]
[328816708,1717833048506,-500.0,0.00016438,2]
[328816709,1717833048516,-311.69366598,0.00016438,2]
[328816710,1717833048525,-694.95,0.00016438,2]
[328816711,1717833048535,-500.0,0.00016438,2]
[328816712,1717833048545,-658.24,0.00016438,2]
[328816713,1717833048554,-500.0,0.00016438,2]
[328816714,1717833048564,-1667.62,0.00016438,2]
[328816715,1717833048574,-500.0,0.00016438,2]
[328816716,1717833048583,-500.0,0.00016438,2]
[328816717,1717833048593,-788.19,0.00016438,2]
[328816718,1717833048603,-2132.07,0.00016438,2]
[328816719,1717833048612,-2248.7,0.00016438,2]
[328816720,1717833048622,-345.8202198,0.00016438,2]
[328816721,1717833048632,-500.0,0.00016438,2]
[328816722,1717833048644,-3049.13,0.00016438,2]
[328816723,1717833048654,-500.0,0.00016438,2]
[328816724,1717833048664,-8978.87,0.00016438,2]
[328816725,1717833048674,-2205.44,0.00016438,2]
[328816726,1717833048686,-1517.92,0.00016438,2]
[328816727,1717833048696,-500.0,0.00016438,2]
[328816728,1717833048706,-1153.68,0.00016438,2]
[328816729,1717833048715,-99.06650157,0.00016438,2]
[328816731,1717833156863,2424.93742655,0.00016712,7]
[328816732,1717833213295,1212.46871327,0.00016712,7]
[328816733,1717833276458,606.23435663,0.00016712,7]
[328816734,1717833333314,303.11717832,0.00016712,7]
[328816735,1717833394610,151.55858916,0.00016712,7]
[328816736,1717833453272,151.55858915,0.00016712,7]
[328816737,1717833479851,456.65567516,9.999e-05,2]
[328816795,1717834234913,-3000.0,0.00015271,2]
[328816797,1717834234922,-2509.31043749,0.0001531,2]
[328816804,1717834234982,-499.8,0.0001531,2]
[328816939,1717834246691,-1475.23055185,0.0001531,2]
[328816940,1717834246707,-5141.10464133,0.0001531,2]
[328816953,1717834249223,240.82,0.00010959,2]
[328816954,1717834275921,154.95351395,9.999e-05,2]
[328816955,1717834602203,180.0,0.0001,7]
[328817180,1717834784974,199.82770425,0.0001,2]
[328817628,1717835250530,154.95351395,9.999e-05,2]
[328817639,1717835364122,686.22281752,9.999e-05,2]
[328817715,1717835432877,-493.55011142,0.00014816,2]
[328817718,1717835432891,-10601.67585379,0.00014816,2]
[328817721,1717835432900,-4237.72657179,0.00014817,2]
[328817724,1717835432911,-6058.8966178,0.00015174,2]
[328817726,1717835432920,-16202.0,0.00016,2]
[328817729,1717835432930,-8525.24911756,0.00016177,2]
[328817910,1717835438923,-1993.58188772,0.00016177,2]
[328818074,1717835442775,-8451.78647141,0.00016177,2]
[328818077,1717835442911,-1029.38252331,0.00016177,2]
[328818078,1717835442921,-588.6238504,0.000162,2]
[328818079,1717835442931,-204.9121812,0.000162,2]
[328818080,1717835442940,-344.0117297,0.000162,2]
[328818081,1717835442950,-921.69718371,0.00016202,2]
[328818082,1717835442959,-155.93733148,0.00016273,3]
[328818083,1717835442970,-306.0,0.000163,2]
[328818084,1717835442980,-556.6955428,0.000163,2]
[328818085,1717835442990,-153.0,0.000163,2]
[328818086,1717835443000,-205.1978842,0.000163,2]
[328818087,1717835443010,-153.0,0.000163,2]
[328818088,1717835443020,-153.0,0.000163,2]
[328818089,1717835443030,-205.1978842,0.000163,2]
[328818090,1717835443039,-153.0,0.000163,2]
[328818091,1717835443049,-153.0,0.000163,2]
[328818092,1717835443061,-205.235798,0.000163,2]
[328818093,1717835443071,-153.0,0.000163,2]
[328818094,1717835443081,-537.5735091,0.000163,2]
[328818095,1717835443091,-205.235798,0.000163,2]
[328818096,1717835443100,-205.235798,0.000163,2]
[328818097,1717835443111,-306.0,0.000163,2]
[328818098,1717835443121,-385.8438884,0.000163,2]
[328818099,1717835443131,-161.966,0.00016318,2]
[328818100,1717835443143,-614.723,0.00016318,2]
[328818101,1717835443152,-166.666666,0.00016329,2]
[328818102,1717835443161,-173.90315981,0.00016338,2]
[328818103,1717835443171,-153.0,0.000164,2]
[328818104,1717835443181,-239.49006775,0.00016436,2]
[328818105,1717835443192,-419.84274166,0.00016436,2]
[328818106,1717835443202,-759.55453663,0.00016436,2]
[328818107,1717835443212,-3421.87043284,0.00016436,2]
[328818108,1717835443222,-285.73167299,0.00016436,2]
[328818109,1717835443234,-1441.79948543,0.00016436,2]
[328818110,1717835443244,-281.00194188,0.00016436,2]
[328818111,1717835443255,-154.95351395,0.00016436,2]
[328818112,1717835443265,-685.82864286,0.00016436,2]
[328818113,1717835443275,-2430.6374744,0.00016437,2]
[328818114,1717835443285,-12639.66091041,0.00016437,2]
[328818153,1717835444426,-1397.20409701,0.00016437,2]
[328818155,1717835444437,-338.79617612,0.00016438,2]
[328818157,1717835444446,-644.02,0.00016438,2]
[328818159,1717835444456,-500.0,0.00016438,2]
[328818161,1717835444466,-1105.61,0.00016438,2]
[328818162,1717835444476,-502.80866071,0.00016438,2]
[328818163,1717835444486,-648.34645195,0.00016438,2]
[328818165,1717835444496,-590.77,0.00016438,2]
[328818167,1717835444506,-500.0,0.00016438,2]
[328818169,1717835444517,-809.09,0.00016438,2]
[328818171,1717835444526,-500.0,0.00016438,2]
[328818173,1717835444536,-500.0,0.00016438,2]
[328818175,1717835444546,-500.0,0.00016438,2]
[328818178,1717835444556,-500.0,0.00016438,2]
[328818179,1717835444566,-539.78,0.00016438,2]
[328818183,1717835444576,-648.50069708,0.00016438,2]
[328818184,1717835444585,-611.72,0.00016438,2]
[328818187,1717835444595,-500.0,0.00016438,2]
[328818190,1717835444605,-500.0,0.00016438,2]
[328818193,1717835444615,-500.0,0.00016438,2]
[328818196,1717835444625,-584.35,0.00016438,2]
[328818198,1717835444634,-500.0,0.00016438,2]
[328818200,1717835444645,-501.47830249,0.00016438,2]
[328818202,1717835444654,-503.76393964,0.00016438,2]
[328818205,1717835444664,-48.92554644,0.00016438,2]
[328818208,1717835444677,-451.07445356,0.00016438,2]
[328818210,1717835444688,-500.0,0.00016438,2]
[328818212,1717835444698,-500.0,0.00016438,2]
[328818214,1717835444708,-592.03679887,0.00016438,2]
[328818216,1717835444719,-500.0,0.00016438,2]
[328818218,1717835444729,-500.0,0.00016438,2]
[328818220,1717835444739,-849.96,0.00016438,2]
[328818222,1717835444748,-500.0,0.00016438,2]
[328818224,1717835444759,-651.94,0.00016438,2]
[328818226,1717835444769,-502.52,0.00016438,2]
[328818228,1717835444779,-500.0,0.00016438,2]